Cogmind - Beta 12 @@@ ROGUE MODE // 2023.04.19 @ 17:34:52 Player: Mr Goldstein Result: Destroyed by as-47827 with Assembled Blade Performance ------------- Evolutions (0) 0 Regions Visited (4) 800 Robots Destroyed (17) 85 Value Destroyed (425) 425 Prototype IDs (23) 460 Alien Tech Used (0) 0 Bonus (315) 315 TOTAL SCORE: 2085 Bonus ------- Follower Combat Kills 39 Aligned with FarCom 300 Friendly Fire -24 Cogmind --------- Core Integrity 0/250 Matter 100/300 Energy 99/100 System Corruption 0% Temperature Cool (0) Movement Core (700) Ox13 Location -9/Mines Parts ------- > --- POWER (1) -------- (None) > --- PROPULSION (2) --- (None) > --- UTILITY (2) ------ High-capacity Storage Unit Improved Targeting Computer > --- WEAPON (2) ------- Light Assault Rifle > --- INVENTORY (20) --- Light Ion Engine Heat Sink High-capacity Matter Pod (200) Improved Targeting Computer Improved Targeting Computer Improved Targeting Computer Light Armor Plating Tractor Beam Assault Rifle Light Cannon Light Cannon AWS/Autocannon Grenade Launcher Grenade Launcher Grenade Launcher Rocket Launcher Peak State ------------ > --- POWER ------------ Ion Engine > --- PROPULSION ------- Wheel Compact Wheel > --- UTILITY ---------- High-capacity Storage Unit Improved Targeting Computer > --- WEAPON ----------- Assault Rifle Assault Rifle > --- INVENTORY -------- Light Ion Engine Heat Sink High-capacity Matter Pod Improved Targeting Computer Improved Targeting Computer Improved Targeting Computer Light Armor Plating Tractor Beam Assault Rifle Light Assault Rifle Light Cannon Light Cannon AWS/Autocannon Grenade Launcher Grenade Launcher Grenade Launcher Rocket Launcher [Rating: 13] Favorites ----------- Power Ion Engine Engine Ion Engine Propulsion Compact Wheel Wheel Compact Wheel Utility Improved Targeting Computer Storage High-capacity Storage Unit Processor Improved Targeting Computer Weapon Assault Rifle Ballistic Gun Assault Rifle Ballistic Cannon Light Cannon Launcher Grenade Launcher Build | -11 -10 -10 -10 -9 ------- Run | Jun Mat Min Exi Min Slots Evolved . | . . . . . Power . | . . . . . Propulsion . | . . . . . Utility . | . . . . . Weapon . | . . . . . Parts Attached 26 | 7 9 3 4 3 Power 4 | 2 1 . 1 . Engine 4 | 2 1 . 1 . Core . | . . . . . Reactor . | . . . . . Propulsion 5 | 2 1 1 1 . Treads . | . . . . . Leg . | . . . . . Wheel 5 | 2 1 1 1 . Hover . | . . . . . Flight . | . . . . . Utility 5 | 1 4 . . . Device . | . . . . . Storage 4 | 1 3 . . . Processor 1 | . 1 . . . Hackware . | . . . . . Protection . | . . . . . Artifact . | . . . . . Weapon 12 | 2 3 2 2 3 Energy Gun . | . . . . . Energy Cannon . | . . . . . Ballistic Gun 9 | 2 3 . 2 2 Ballistic Cannon 1 | . . 1 . . Launcher 2 | . . 1 . 1 Special Weapon . | . . . . . Impact Weapon . | . . . . . Slashing Weapon . | . . . . . Piercing Weapon . | . . . . . Special Melee Weapon . | . . . . . Unidentified Prototypes . | . . . . . Parts Lost 9 | . . 4 . 5 Power 2 | . . 1 . 1 Propulsion 4 | . . 2 . 2 Utility . | . . . . . Weapon 3 | . . 1 . 2 Highest Loss Streak 3 | . . 3 . 3 To Critical Strikes . | . . . . . Average Slot Usage (%) 81 | . 99 69 100 74 Engine 8 | . 13 2 14 11 Wheel 20 | . 27 17 28 6 Storage 14 | . 14 14 14 14 Processor 14 | . 14 14 14 14 Ballistic Gun 18 | . 27 9 28 26 Ballistic Cannon 1 | . . 2 . . Launcher 4 | . . 7 . 1 Naked Turns . | . . . . . Heaviest Build 51 | 14 49 49 49 51 Greatest Support 32 | 26 26 32 26 26 Greatest Overweight (x) 16 | . 3 2 1 16 Average Overweight (x) 1 | . . 1 1 5 Largest Inventory Capacity 20 | 8 20 20 20 20 Average Capacity 18 | 7 17 20 20 20 Most Carried 19 | 2 18 19 19 19 Average Carried 14 | . 9 17 17 18 Final Capacity 20 | 8 20 20 20 20 Final Carried 19 | 2 16 19 19 18 Class Distribution -------------------- 100% | Mutant Dominant Class ---------------- Mutant | -10/Materials Mutant | -10/Mines Mutant | -10/Exiles Mutant | -9/Mines Resources | -11 -10 -10 -10 -9 ----------- Run | Jun Mat Min Exi Min Matter Collected 715 | 282 198 186 . 49 Remotely . | . . . . . Salvage Created 686 | 92 216 236 . 142 Parts 38 | 3 16 15 . 4 Haulers Intercepted 1 | . 1 . . . Recyclers Shooed . | . . . . . Parts Field Recycled . | . . . . . Retrieved Matter . | . . . . . Parts Self-Destructed . | . . . . . Prevented . | . . . . . Kills | -11 -10 -10 -10 -9 ------- Run | Jun Mat Min Exi Min Combat Hostiles Destroyed 21 | . 4 7 . 10 Guns 14 | . 4 4 . 6 AOE 7 | . . 3 . 4 Classes Destroyed 7 | 1 2 2 . 2 Worker 2 | . . 2 . . Hauler 1 | . 1 . . . Recycler 1 | 1 . . . . Swarmer 3 | . . 3 . . Grunt 9 | . 4 4 . 1 Demolisher 1 | . . . . 1 Assembled 8 | . . . . 8 Best Kill Streak 6 | 1 2 3 . 6 Combat Bots Only 6 | . 2 3 . 6 Max Kills in Single Turn 3 | 1 1 3 . 2 Gunslinging . | . . . . . Exploded 3 | . . 3 . 2 Melee . | . . . . . Uniques/NPCs Destroyed . | . . . . . Combat | -11 -10 -10 -10 -9 -------- Run | Jun Mat Min Exi Min Damage Taken 950 | . 108 336 . 506 Core 271 | . 12 106 . 153 Absorbed by Shields . | . . . . . Core Remaining (%) 100 | 100 . . . . Volleys Fired 82 | 2 25 22 . 33 Largest 2 | 2 2 2 . 2 Hottest 55 | 40 40 55 . 40 Shots Fired 156 | 4 50 42 . 60 Gun 150 | 4 50 40 . 56 Cannon 1 | . . 1 . . Launcher 5 | . . 1 . 4 Special . | . . . . . Kinetic 151 | 4 50 41 . 56 Thermal . | . . . . . Explosive 5 | . . 1 . 4 Electromagnetic . | . . . . . Robot Hit Streak 21 | 4 12 21 . 9 Robot Miss Streak 4 | . 3 4 . 4 Penetration Max . | . . . . . Secondary Targets 2 | . . . . 2 Max Gunslinging Chain 1 | . . . . 1 Shots Hit Robots 105 | 4 34 33 . 34 Core Hits 49 | 2 11 14 . 22 Critical Kills 1 | . . . . 1 Critical Parts Destroyed 1 | . . 1 . . Critical Strikes 2 | . . 1 . 1 Destroy 2 | . . 1 . 1 Melee Attacks . | . . . . . Impact . | . . . . . Slashing . | . . . . . Piercing . | . . . . . Sneak Attacks . | . . . . . Combat Hostiles . | . . . . . Follow-up Attacks . | . . . . . Damage Inflicted 1594 | 49 415 492 . 638 Guns 1296 | 49 415 403 . 429 Cannons . | . . . . . Explosions 298 | . . 89 . 209 Melee . | . . . . . Ramming . | . . . . . Kinetic 1296 | 49 415 403 . 429 Thermal . | . . . . . Explosive 298 | . . 89 . 209 Electromagnetic . | . . . . . Impact . | . . . . . Slashing . | . . . . . Piercing . | . . . . . Highest Corruption . | . . . . . Average Corruption . | . . . . . Corruption Purged . | . . . . . Corruption Blocked . | . . . . . Overload Shots . | . . . . . Overflow Damage 30 | . . 30 . . Projectiles . | . . . . . Explosions 30 | . . 30 . . Melee . | . . . . . Knockbacks . | . . . . . Impact . | . . . . . Kinetic . | . . . . . Secondary . | . . . . . Self-Inflicted Damage . | . . . . . Shots . | . . . . . Rammed . | . . . . . Targets Rammed . | . . . . . Kicked . | . . . . . Crushed . | . . . . . Highest Temperature 13 | . . 2 . 13 Average Temperature 4 | . . 2 . 9 Received Heat Transfer 330 | . 60 186 . 84 Siege Activations . | . . . . . Robots Corrupted . | . . . . . Combat Hostiles . | . . . . . Parts Fried . | . . . . . Impact Corruptions . | . . . . . Robots Melted . | . . . . . Combat Hostiles . | . . . . . Parts Melted . | . . . . . Heat Transferred . | . . . . . Parts Sabotaged . | . . . . . Parts Stolen . | . . . . . Parts Stripped . | . . . . . Power Chain Reactions . | . . . . . Missiles Intercepted . | . . . . . Alert | -11 -10 -10 -10 -9 ------- Run | Jun Mat Min Exi Min Peak Influence 161 | 5 161 81 . 52 Initial 11 | . 3 11 . . Average 51 | 2 54 58 . 27 Maximum Alert Level . | . . . . . Low Security (%) 100 | 100 100 100 . 100 Level 1 . | . . . . . Level 2 . | . . . . . Level 3 . | . . . . . Level 4 . | . . . . . Level 5 . | . . . . . High Security . | . . . . . Max Security . | . . . . . Squads Dispatched 6 | . 5 . . 1 Investigation 2 | . 2 . . . Extermination . | . . . . . Reinforcement 4 | . 3 . . 1 Assault . | . . . . . Garrison . | . . . . . Intercept . | . . . . . Searches Triggered . | . . . . . Construction Impeded 1 | . . . . 1 Haulers Reinforced . | . . . . . Active Scanning Responses . | . . . . . Cargo Convoy Interrupts . | . . . . . Stealth | -11 -10 -10 -10 -9 --------- Run | Jun Mat Min Exi Min Distress Signals 1 | . 1 . . . Communications Jammed . | . . . . . Distress Signals . | . . . . . Times Spotted 35 | . 11 7 . 17 Peak Tracking Total 5 | . 4 3 . 5 Tactical Retreats 1 | . 1 . . . Traps | -11 -10 -10 -10 -9 ------- Run | Jun Mat Min Exi Min Traps Triggered 3 | . 3 . . . Indirectly . | . . . . . Trap Hack Attempts . | . . . . . Triggered . | . . . . . Disarmed . | . . . . . Reprogrammed . | . . . . . Reused . | . . . . . Traps Extracted . | . . . . . Installed . | . . . . . Triggered . | . . . . . Machines | -11 -10 -10 -10 -9 ---------- Run | Jun Mat Min Exi Min Machines Disabled . | . . . . . Max in Single Turn . | . . . . . Machines Repaired . | . . . . . Machines Sabotaged . | . . . . . Overloaded Fab Kills . | . . . . . Hacking | -11 -10 -10 -10 -9 --------- Run | Jun Mat Min Exi Min Machines Accessed 3 | . 2 . 1 . Terminals 2 | . 2 . . . Fabricators . | . . . . . Repair Stations . | . . . . . Recycling Units . | . . . . . Scanalyzers . | . . . . . Garrison Access . | . . . . . Total Hacks 5 | . 4 . 1 . Successful 4 | . 3 . 1 . Failed 1 | . 1 . . . Catastrophic . | . . . . . Database Lockouts . | . . . . . Manual 4 | . 3 . 1 . Terminals 4 | . 4 . . . Fabricators . | . . . . . Repair Stations . | . . . . . Recycling Units . | . . . . . Scanalyzers . | . . . . . Garrison Access . | . . . . . Terminal Hacks 3 | . 2 . 1 . Branch Access Points 1 | . 1 . . . Zone Layout 1 | . 1 . . . EX-Prototype ID Bank 1 | . . . 1 . Fabricator Hacks . | . . . . . Repair Station Hacks . | . . . . . Recycling Unit Hacks . | . . . . . Scanalyzer . | . . . . . Garrison Access Hacks . | . . . . . Unauthorized Hacks 1 | . 1 . . . Terminals 1 | . 1 . . . Botnet 1 | . 1 . . . Fabricators . | . . . . . Repair Stations . | . . . . . Recycling Units . | . . . . . Scanalyzers . | . . . . . Garrison Access . | . . . . . Data Cores Recovered . | . . . . . Used . | . . . . . Hacking Detections 2 | . 2 . . . Full Trace Events . | . . . . . Feedback Events . | . . . . . Feedback Blocked . | . . . . . Robot Schematics Acquired . | . . . . . Robots Built . | . . . . . Authchips . | . . . . . Time . | . . . . . Total Robot Build Rating . | . . . . . Part Schematics Acquired . | . . . . . Parts Built . | . . . . . Authchips . | . . . . . Time . | . . . . . Total Part Build Rating . | . . . . . Parts Repaired . | . . . . . Time . | . . . . . Parts Recycled . | . . . . . Recycled Matter . | . . . . . Retrieved Matter . | . . . . . Retrieved Components . | . . . . . Parts Scanalyzed . | . . . . . Part Schematics Acquired . | . . . . . Parts Damaged . | . . . . . Bothacking | -11 -10 -10 -10 -9 ------------ Run | Jun Mat Min Exi Min Used RIF Installer . | . . . . . Robots Hacked . | . . . . . Non-combat . | . . . . . Combat . | . . . . . Robot Hacks Applied . | . . . . . Relay Couplers Released . | . . . . . Fabnet Peak Effective % . | . . . . . Robots Rewired . | . . . . . Allies Hacked . | . . . . . Hacks Repelled . | . . . . . Allies | -11 -10 -10 -10 -9 -------- Run | Jun Mat Min Exi Min Total Allies 3 | . . . . 3 Largest Group 3 | . . . . 3 Highest-Rated Group 40 | . . . . 40 Highest-Rated Ally 16 | . . . . 16 Total Orders . | . . . . . Ally Attacks 19 | . . . . 19 Total Damage 132 | . . . . 132 Kills 2 | . . . . 2 Allies Corrupted . | . . . . . Allies Melted . | . . . . . Intel | -11 -10 -10 -10 -9 ------- Run | Jun Mat Min Exi Min Robot Analysis Total . | . . . . . Derelict Logs Recovered 2 | . . 2 . . Drone Launches . | . . . . . Drone Recoveries . | . . . . . Exploration | -11 -10 -10 -10 -9 ------------- Run | Jun Mat Min Exi Min Turns Passed 1941 | 73 501 945 230 192 Spaces Moved 1342 | 65 375 658 214 30 Core 18 | 10 . . . 8 Treads . | . . . . . Legs . | . . . . . Wheels 1324 | 55 375 658 214 22 Hover . | . . . . . Flight . | . . . . . Fastest Speed 50 | 50 90 105 105 105 Average Speed 118 | 86 102 126 105 300 Slowest Speed 850 | 100 145 130 105 850 Overloaded Moves . | . . . . . Propulsion Burnouts . | . . . . . Robots Hopped . | . . . . . Cave-ins Triggered . | . . . . . Exploration Rate (%) 45 | 3 56 93 60 14 Regions Visited 4 Branch Regions 3 Pre-discovered Areas 1 | . . 1 . . Known Exits Taken 2 | . 1 . 1 . Unknown Exits Taken 2 | 1 . 1 . . Scrap Searched 3 | . . 3 . . Spaces Dug 6 | . . 6 . . Terrain Destroyed 31 | . . 6 . 25 Melee . | . . . . . Projectile . | . . . . . AOE 31 | . . 6 . 25 Terrain Rammed . | . . . . . Walls Destroyed . | . . . . . Machines Disabled . | . . . . . Actions | -11 -10 -10 -10 -9 --------- Run | Jun Mat Min Exi Min Total 1531 | 74 439 727 218 73 Wait 59 | . 12 40 . 7 Move 1338 | 64 374 657 213 30 Hop . | . . . . . Pick Up 22 | 1 16 4 1 . Fast Attach 10 | 6 4 . . . Attach 8 | . 2 2 3 1 Detach 1 | . . 1 . . Swap 8 | 1 3 1 1 2 Drop 3 | . 3 . . . Fire 82 | 2 25 22 . 33 Melee . | . . . . . Ram . | . . . . . Kick . | . . . . . Crush . | . . . . . Escape Stasis . | . . . . . Rewire . | . . . . . Trap . | . . . . . Miscellaneous . | . . . . . Route ------- -11/Junkyard -10/Materials (discovered 3 exits: [*Mat] / *Min x2) -10/Mines (discovered 3 exits: [*Mat x2] / *Exi) -10/Exiles (discovered 2 exits: *Min x2) -9/Mines History --------- Turn | Location | Event 4 | -11/Junkyard | Discovered new exit (range 15) 74 | -11/Junkyard | Entered Materials 233 | -10/Materials | Discovered new exit (range 5) 260 | -10/Materials | Discovered new exit (range 15) 304 | -10/Materials | Build established: Mutant 475 | -10/Materials | Identified exit to Mines 575 | -10/Materials | Entered Mines 575 | -10/Mines | Discovered new exit (range 6) 826 | -10/Mines | Received a Rocket Launcher from a helpful Derelict 830 | -10/Mines | Lost 3 parts (1p1n1w) 1018 | -10/Mines | Discovered new exit (range 10) 1054 | -10/Mines | Learned Materials terminal intel 1060 | -10/Mines | Learned location of Storage (-7) 1514 | -10/Mines | Deemed a non-threat by the Exiles lab entrance 1514 | -10/Mines | Discovered new exit (range 5) 1520 | -10/Mines | Entered Exiles 1521 | -10/Exiles | Identified exit to Mines 1553 | -10/Exiles | Met 8R-AWN 1568 | -10/Exiles | Met EX-HEX 1598 | -10/Exiles | Met EX-BIN 1613 | -10/Exiles | Aligned with FarCom system 1614 | -10/Exiles | Given EX-Vault access code 1639 | -10/Exiles | Opened EX-Vault 1648 | -10/Exiles | Found AWS/Autocannon 1671 | -10/Exiles | Warned to stay clear of 0b10 Research branches 1700 | -10/Exiles | Met EX-DEC 1750 | -10/Exiles | Left Exiles lab with AWS/Autocannon 1750 | -10/Exiles | Entered Mines 1754 | -9/Mines | Assembled infested the area 1755 | -9/Mines | Assisted by bots powering up and referring to "LRC-V3" 1768 | -9/Mines | Core integrity fell below 50% 1890 | -9/Mines | Core integrity fell below 20% 1942 | -9/Mines | Destroyed by as-47827 with Assembled Blade Last Messages --------------- 01901_ Switching to secondary target: as-69302. 01907_ R-06 Scavenger collects Ion Engine. 01909_ Ion Engine destroyed. 01915_ Assault Rifle destroyed. 01918_ U-05 Engineer lays Concrete. 01919_ as-69302 destroyed. 01919_ U-05 Engineer lays Concrete. 01924_ The unstable cave ceiling collapses. 01924_ U-05 Engineer lays Concrete. 01928_ U-05 Engineer builds a Wall. 01929_ U-05 Engineer lays Concrete. 01929_ Acquired 49 matter. 01930_ U-05 Engineer lays Concrete. 01934_ as-47827 sneak attacks. 01934_ U-05 Engineer destroyed. 01935_ U-05 Engineer lays Concrete. 01937_ The unstable cave ceiling collapses. 01937_ U-05 Engineer builds a Wall. 01940_ Assault Rifle destroyed. 01940_ U-05 Engineer lays Concrete. Map ----- +----------------------------------------------------+ | ?????????????????????????????????????????????????? | | ??????????????????????????###????????????????????? | | ?????????????????????????## ##??????????????????? | | ?????????????????????????# #??????????????????? | | ?????????????????????????? #??????????????????? | | ??????????????????????????# ##?????????????????? | | ??????????????????????????# #?????????????????? | | ??????????????????????????# #?????????????????? | | ???????????????????????????# #?????????????????? | | ??????????????????????????## #?????????????????? | | ????????????????????????### #?###?????????????? | | ???????????????????????## ### ##????????????? | | ???????????????????????# ## #????????????? | | ?????????????????????### #????????????? | | ?????????????????????# ##????????????? | | ?????????????????????# ##?????????????? | | ?????????????????????# #??????????????? | | ?????????????????????### #??????????????? | | ???????????????????????# #??????????????? | | ???????????????????????# # #??????????????? | | ???????????????????????## ##??????????????? | | ????????????????????????# ##???????????????? | | ????????????????????????# # #????????????????? | | ?????????????????????#? # # #????????????????? | | ?????????????????????# ###%u ##????????????????? | | ????????????????????## %%@= # #????????????????? | | ????????????????????# =a% ##????????????????? | | ???????????????????# % # #????????????????? | | ???????????????????# # ##????????????????? | | ???????????????????# ###?????????????????? | | ???????????????????# ##???????????????????? | | ?????????????????? #! %%#????????????????????? | | ????????????????? %=% % ????????????????????? | | ????????????????# ????????????????????? | | ????????????????# % #???????????????????? | | ????????????????## # ##???????????????????? | | ?????????????????# # ## #????????????????????? | | ?????????????????# # ?? #????????????????????? | | ??????????????????? ###?? #????????????????????? | | ?????????????????????#????? #????????????????????? | | ??????????????????????????? ?????????????????????? | | ?????????????????????????????????????????????????? | | ?????????????????????????????????????????????????? | | ?????????????????????????????????????????????????? | | ?????????????????????????????????????????????????? | | ?????????????????????????????????????????????????? | | ?????????????????????????????????????????????????? | | ?????????????????????????????????????????????????? | | ?????????????????????????????????????????????????? | | ?????????????????????????????????????????????????? | +----------------------------------------------------+ Best States ------------- Heat Dissipation 25 Energy Generation 10 Energy Capacity 250 Matter Stores 300 Matter Capacity 300 Sight Range 16 Terrain Scan Density 10 Evasion (%) 42 Targeting Accuracy 6 Item Schematics ----------------- None Robot Schematics ------------------ None Fabricated ------------ Nothing Alien Tech Used ----------------- None Achievements -------------- None Challenges ------------ None Game ------ Seed NuclearTrapPerforator Manual? 0 Play Time 00:11:59 Cumulative 128.3 hours Start 2023.04.19 @ 17:24:33 End 2023.04.19 @ 17:34:52 Sessions 1 Manual Loads 0 Difficulty Rogue Special Mode None Game No. 366 Rogue 366 Adventurer 0 Explorer 0 Win Type - Total 4 Types 4/0/0/0/0/0/0/0/0 Lore% 60 Gallery% 63 Achievement% 54 Wizard Run 0 Options --------- ASCII 0 Keyboard 0 Movement Arrows Keybinds 0 Fullscreen 1 Font 12/Smallcaps Map View 83x54 Tactical HUD 1 Map Filters NONE Filters NONE Steam 1 RUN: e8eaa682-53cc-432b-8fab-bd5a4c74c908